[Event "Live Chess"]
[Site "Chess.com"]
[Date "2023.05.20"]
[Round "-"]
[White "whitedjohn"]
[Black "mliszewski"]
[Result "0-1"]
[WhiteElo "1666"]
[BlackElo "1904"]
[TimeControl "300"]
[EndTime "10:58:11 PDT"]
[Termination "mliszewski won by resignation"]

1. e4 {[%clk 0:04:57.8]} 1... c6 {[%clk 0:04:58.6]} 2. d4 {[%clk 0:04:53.4]}
2... d5 {[%clk 0:04:58.5]} 3. exd5 {[%clk 0:04:51.7]} 3... cxd5 {[%clk
0:04:57.7]} 4. Bd3 {[%clk 0:04:46.8]} 4... Nc6 {[%clk 0:04:56.4]} 5. c3 {[%clk
0:04:45.4]} 5... g6 {[%clk 0:04:54.9]} 6. Bf4 {[%clk 0:04:43.4]} 6... Bg7 {[%clk
0:04:50]} 7. Nf3 {[%clk 0:04:41.7]} 7... Nh6 {[%clk 0:04:44.9]} 8. O-O {[%clk
0:04:39.9]} 8... O-O {[%clk 0:04:43.8]} 9. Re1 {[%clk 0:04:33.8]} 9... f6 {[%clk
0:04:42.1]} 10. Qd2 {[%clk 0:04:18.6]} 10... Nf7 {[%clk 0:04:40.7]} 11. h4
{[%clk 0:04:10.8]} 11... e5 {[%clk 0:04:39.8]} 12. dxe5 {[%clk 0:04:03.3]} 12...
fxe5 {[%clk 0:04:39]} 13. Bg5 {[%clk 0:04:01.7]} 13... Nxg5 {[%clk 0:04:37.2]}
14. Nxg5 {[%clk 0:03:59.3]} 14... e4 {[%clk 0:04:36.2]} 15. Bc2 {[%clk
0:03:49.2]} 15... Qf6 {[%clk 0:04:29.3]} 16. Qxd5+ {[%clk 0:03:21.4]} 16... Kh8
{[%clk 0:04:26.1]} 17. Qd2 {[%clk 0:03:18.5]} 17... Bf5 {[%clk 0:04:18.7]} 18.
Na3 {[%clk 0:02:54.4]} 18... Rad8 {[%clk 0:04:15.1]} 19. Qe3 {[%clk 0:02:48.2]}
19... Ne5 {[%clk 0:04:01.2]} 20. Rad1 {[%clk 0:02:24.8]} 20... Rxd1 {[%clk
0:03:55.1]} 21. Rxd1 {[%clk 0:02:20.2]} 21... Ng4 {[%clk 0:03:54.1]} 22. Qf4
{[%clk 0:02:10.2]} 22... Qb6 {[%clk 0:03:29.9]} 23. Nc4 {[%clk 0:02:04.9]} 23...
Qc5 {[%clk 0:03:20.5]} 24. Ne3 {[%clk 0:01:50.2]} 24... Nxe3 {[%clk 0:03:16.6]}
25. Qxe3 {[%clk 0:01:47.2]} 25... Qxe3 {[%clk 0:03:13.4]} 26. fxe3 {[%clk
0:01:45.9]} 26... h6 {[%clk 0:03:04.9]} 27. Nxe4 {[%clk 0:01:41.7]} 27... Re8
{[%clk 0:03:03.3]} 28. Nd6 {[%clk 0:01:35.5]} 28... Bxc2 {[%clk 0:02:57.5]} 29.
Nxe8 {[%clk 0:01:32.7]} 29... Bxd1 {[%clk 0:02:56.4]} 30. Nxg7 {[%clk
0:01:28.1]} 30... Kxg7 {[%clk 0:02:55.6]} 0-1

[Event "Live Chess"]
[Site "Chess.com"]
[Date "2023.05.20"]
[Round "-"]
[White "siddu198"]
[Black "Delacorta"]
[Result "0-1"]
[WhiteElo "1617"]
[BlackElo "1430"]
[TimeControl "300"]
[EndTime "10:58:12 PDT"]
[Termination "Delacorta won by resignation"]

1. e4 {[%clk 0:04:57.5]} 1... e6 {[%clk 0:04:59.3]} 2. d4 {[%clk 0:04:56.6]}
2... d5 {[%clk 0:04:58.6]} 3. exd5 {[%clk 0:04:55.9]} 3... exd5 {[%clk
0:04:58.5]} 4. Nc3 {[%clk 0:04:55.1]} 4... Nf6 {[%clk 0:04:57.9]} 5. Nf3 {[%clk
0:04:54.7]} 5... Bb4 {[%clk 0:04:51.8]} 6. Bd3 {[%clk 0:04:54.6]} 6... O-O
{[%clk 0:04:48.9]} 7. Be3 {[%clk 0:04:53.5]} 7... Re8 {[%clk 0:04:45.1]} 8. h3
{[%clk 0:04:51.3]} 8... Ne4 {[%clk 0:04:36]} 9. Bxe4 {[%clk 0:04:47.7]} 9...
dxe4 {[%clk 0:04:32.6]} 10. Nd2 {[%clk 0:04:41.3]} 10... f5 {[%clk 0:04:09]} 11.
a3 {[%clk 0:04:35.8]} 11... Be7 {[%clk 0:04:05.8]} 12. Qe2 {[%clk 0:04:28.3]}
12... b6 {[%clk 0:04:04.3]} 13. Qc4+ {[%clk 0:04:27.2]} 13... Kh8 {[%clk
0:04:00.9]} 14. Nd5 {[%clk 0:04:25.8]} 14... Bd6 {[%clk 0:03:39.6]} 15. Nf4
{[%clk 0:04:06.3]} 15... Ba6 {[%clk 0:03:37]} 16. Qb3 {[%clk 0:04:01.3]} 16...
Nc6 {[%clk 0:03:18]} 17. Nc4 {[%clk 0:03:39.5]} 17... Qh4 {[%clk 0:02:44.7]} 18.
g3 {[%clk 0:03:34.5]} 18... Qf6 {[%clk 0:02:34]} 19. Nxd6 {[%clk 0:02:46.8]}
19... Qxd6 {[%clk 0:02:31.1]} 20. d5 {[%clk 0:02:42.2]} 20... Ne5 {[%clk
0:02:25.8]} 21. Bd4 {[%clk 0:02:29.9]} 21... Nf3+ {[%clk 0:02:23.5]} 22. Kd1
{[%clk 0:02:26.1]} 22... Nxd4 {[%clk 0:02:22.6]} 23. Qc4 {[%clk 0:02:19.4]}
23... Bxc4 {[%clk 0:02:20.5]} 24. Ne6 {[%clk 0:02:16.8]} 24... Rxe6 {[%clk
0:02:17.6]} 0-1

[Event "Live Chess"]
[Site "Chess.com"]
[Date "2023.05.20"]
[Round "-"]
[White "WilliamofOrange16th"]
[Black "ramses-IIG"]
[Result "0-1"]
[WhiteElo "1879"]
[BlackElo "785"]
[TimeControl "300"]
[EndTime "10:58:13 PDT"]
[Termination "ramses-IIG won by resignation"]

1. e4 {[%clk 0:04:57.5]} 1... d5 {[%clk 0:04:59.9]} 2. exd5 {[%clk 0:04:56]}
2... Qxd5 {[%clk 0:04:59.8]} 3. Nf3 {[%clk 0:04:55.1]} 3... Qe6+ {[%clk
0:04:59.7]} 4. Be2 {[%clk 0:04:53.3]} 4... Qg6 {[%clk 0:04:57.4]} 5. O-O {[%clk
0:04:46.1]} 5... h5 {[%clk 0:04:52.9]} 6. Kh1 {[%clk 0:04:33.3]} 6... h4 {[%clk
0:04:51.3]} 7. d4 {[%clk 0:04:30.9]} 7... h3 {[%clk 0:04:43.1]} 8. g3 {[%clk
0:04:24]} 8... e6 {[%clk 0:04:34.3]} 9. Ne5 {[%clk 0:04:19.9]} 9... Qe4+ {[%clk
0:04:29.5]} 10. Bf3 {[%clk 0:04:19]} 10... Qf5 {[%clk 0:04:20.6]} 11. Qd3 {[%clk
0:04:15.5]} 11... Qxd3 {[%clk 0:04:08.9]} 12. Nxd3 {[%clk 0:04:15.4]} 12... c6
{[%clk 0:03:58.2]} 13. c4 {[%clk 0:04:07.9]} 13... Nf6 {[%clk 0:03:55.6]} 14.
Nc3 {[%clk 0:04:05.8]} 14... Na6 {[%clk 0:03:51.1]} 15. Bg5 {[%clk 0:04:00.5]}
15... Be7 {[%clk 0:03:48.1]} 16. Rad1 {[%clk 0:03:50.4]} 16... Nb4 {[%clk
0:03:45.9]} 17. Nxb4 {[%clk 0:03:48.7]} 17... Bxb4 {[%clk 0:03:43.2]} 18. Bxf6
{[%clk 0:03:45.1]} 18... gxf6 {[%clk 0:03:43.1]} 19. Ne4 {[%clk 0:03:43.9]}
19... f5 {[%clk 0:03:35.6]} 20. Nf6+ {[%clk 0:03:35.1]} 20... Ke7 {[%clk
0:03:32]} 21. Nh5 {[%clk 0:03:33.2]} 21... Bd7 {[%clk 0:03:21.6]} 22. a3 {[%clk
0:03:32.3]} 22... Ba5 {[%clk 0:03:19.3]} 23. b4 {[%clk 0:03:28.7]} 23... Bc7
{[%clk 0:03:17.4]} 24. Rfe1 {[%clk 0:03:27]} 24... b6 {[%clk 0:03:15.8]} 25. d5
{[%clk 0:03:26]} 25... cxd5 {[%clk 0:03:14.5]} 26. cxd5 {[%clk 0:03:24.8]} 26...
Rag8 {[%clk 0:02:48.9]} 27. d6+ {[%clk 0:03:17.6]} 27... Bxd6 {[%clk 0:02:47.4]}
28. Nf4 {[%clk 0:03:06.2]} 28... Bxf4 {[%clk 0:02:43.4]} 29. gxf4 {[%clk
0:03:06.1]} 29... Ba4 {[%clk 0:02:35.8]} 30. Rd4 {[%clk 0:03:02.9]} 30... Rc8
{[%clk 0:02:16.4]} 31. Kg1 {[%clk 0:02:35.4]} 31... Rhg8+ {[%clk 0:02:07.8]} 32.
Kf1 {[%clk 0:02:34.6]} 32... Bb5+ {[%clk 0:02:06]} 33. Be2 {[%clk 0:02:33.8]}
33... Bxe2+ {[%clk 0:01:51.6]} 34. Kxe2 {[%clk 0:02:30.6]} 34... Rg2 {[%clk
0:01:47.4]} 35. Red1 {[%clk 0:02:26.9]} 35... Rc2+ {[%clk 0:01:42.3]} 36. Ke3
{[%clk 0:02:23]} 36... Rxh2 {[%clk 0:01:37.2]} 37. Rd7+ {[%clk 0:02:20.9]} 37...
Kf6 {[%clk 0:01:36]} 38. Rf1 {[%clk 0:02:14.7]} 38... Rg2 {[%clk 0:01:33.7]} 39.
Rxa7 {[%clk 0:02:13.5]} 39... h2 {[%clk 0:01:31.6]} 40. Kf3 {[%clk 0:02:11.5]}
40... Rg1 {[%clk 0:01:30.6]} 0-1

[Event "Live Chess"]
[Site "Chess.com"]
[Date "2023.05.20"]
[Round "-"]
[White "Jio85"]
[Black "ViktorTheCoolBoy"]
[Result "0-1"]
[WhiteElo "2014"]
[BlackElo "2543"]
[TimeControl "300"]
[EndTime "10:58:25 PDT"]
[Termination "ViktorTheCoolBoy won by resignation"]

1. e4 {[%clk 0:04:59]} 1... c6 {[%clk 0:04:56.8]} 2. d4 {[%clk 0:04:57.6]} 2...
d5 {[%clk 0:04:55.3]} 3. e5 {[%clk 0:04:57.3]} 3... c5 {[%clk 0:04:53.7]} 4. c3
{[%clk 0:04:56.3]} 4... Nc6 {[%clk 0:04:51.8]} 5. Nf3 {[%clk 0:04:55.6]} 5...
Bg4 {[%clk 0:04:47.6]} 6. Be3 {[%clk 0:04:52]} 6... e6 {[%clk 0:04:43.7]} 7. Bd3
{[%clk 0:04:47.7]} 7... Qb6 {[%clk 0:04:32.8]} 8. b3 {[%clk 0:04:33.8]} 8...
cxd4 {[%clk 0:04:13.1]} 9. Bxd4 {[%clk 0:04:31.2]} 9... Nxd4 {[%clk 0:04:09.4]}
10. cxd4 {[%clk 0:04:26.2]} 10... Bb4+ {[%clk 0:04:08]} 11. Kf1 {[%clk
0:04:23.1]} 11... Bxf3 {[%clk 0:03:58.6]} 12. gxf3 {[%clk 0:04:20.8]} 12... Nh6
{[%clk 0:03:57.2]} 13. a3 {[%clk 0:04:17.4]} 13... Be7 {[%clk 0:03:55.2]} 14. b4
{[%clk 0:04:16.4]} 14... Rc8 {[%clk 0:03:52.3]} 15. Qa4+ {[%clk 0:04:13.8]}
15... Kf8 {[%clk 0:03:49.7]} 16. Qd7 {[%clk 0:03:32.5]} 16... Rc7 {[%clk
0:03:47.2]} 0-1

[Event "Live Chess"]
[Site "Chess.com"]
[Date "2023.05.20"]
[Round "-"]
[White "Prijmak"]
[Black "Inglaterra"]
[Result "0-1"]
[WhiteElo "1035"]
[BlackElo "2076"]
[TimeControl "300"]
[EndTime "10:58:27 PDT"]
[Termination "Inglaterra won by resignation"]

1. e4 {[%clk 0:04:57.8]} 1... e5 {[%clk 0:04:57.6]} 2. Nf3 {[%clk 0:04:56.5]}
2... Nf6 {[%clk 0:04:56.9]} 3. Nc3 {[%clk 0:04:53.8]} 3... Bb4 {[%clk 0:04:55]}
4. d3 {[%clk 0:04:50.8]} 4... Nc6 {[%clk 0:04:53]} 5. Bd2 {[%clk 0:04:49.6]}
5... O-O {[%clk 0:04:51.9]} 6. a3 {[%clk 0:04:48.5]} 6... Bxc3 {[%clk 0:04:48]}
7. Bxc3 {[%clk 0:04:46.7]} 7... d5 {[%clk 0:04:47.9]} 8. exd5 {[%clk 0:04:41.7]}
8... Nxd5 {[%clk 0:04:47.8]} 9. Bd2 {[%clk 0:04:34.5]} 9... Re8 {[%clk
0:04:44.4]} 10. Qe2 {[%clk 0:04:29.3]} 10... Bg4 {[%clk 0:04:41.8]} 11. h3
{[%clk 0:04:27.1]} 11... Nd4 {[%clk 0:04:40.5]} 12. hxg4 {[%clk 0:04:22.4]}
12... Nxe2 {[%clk 0:04:38.8]} 0-1

[Event "Live Chess"]
[Site "Chess.com"]
[Date "2023.05.20"]
[Round "-"]
[White "Conradical12"]
[Black "Olisingapore"]
[Result "1-0"]
[WhiteElo "1539"]
[BlackElo "1914"]
[TimeControl "300"]
[EndTime "10:58:34 PDT"]
[Termination "Conradical12 won by resignation"]

1. e4 {[%clk 0:04:58.1]} 1... c5 {[%clk 0:04:59.4]} 2. Nc3 {[%clk 0:04:55.6]}
2... d6 {[%clk 0:04:52.4]} 3. d3 {[%clk 0:04:54.6]} 3... g6 {[%clk 0:04:51.3]}
4. f4 {[%clk 0:04:53.6]} 4... Bg7 {[%clk 0:04:50.9]} 5. g3 {[%clk 0:04:52.8]}
5... Nc6 {[%clk 0:04:50.3]} 6. Be3 {[%clk 0:04:51.3]} 6... e6 {[%clk 0:04:49.8]}
7. Nge2 {[%clk 0:04:50.9]} 7... Nge7 {[%clk 0:04:49.4]} 8. Qd2 {[%clk
0:04:50.3]} 8... Rb8 {[%clk 0:04:48.9]} 9. O-O-O {[%clk 0:04:49.9]} 9... b5
{[%clk 0:04:48.5]} 10. d4 {[%clk 0:04:43.9]} 10... Qa5 {[%clk 0:04:45.2]} 11.
dxc5 {[%clk 0:04:39.6]} 11... dxc5 {[%clk 0:04:27.6]} 12. Qd6 {[%clk 0:04:37.5]}
12... b4 {[%clk 0:04:17.6]} 13. Nb1 {[%clk 0:04:32.7]} 13... Qxa2 {[%clk
0:04:07.4]} 14. Bxc5 {[%clk 0:04:29.9]} 14... Qxb2+ {[%clk 0:03:57]} 15. Kd2
{[%clk 0:04:28.5]} 15... Bc3+ {[%clk 0:03:42.2]} 16. Nexc3 {[%clk 0:04:25.8]}
16... Qxc3+ {[%clk 0:03:37.2]} 17. Nxc3 {[%clk 0:04:24.3]} 17... bxc3+ {[%clk
0:03:35.5]} 18. Kxc3 {[%clk 0:04:23.5]} 18... f5 {[%clk 0:03:28.8]} 19. exf5
{[%clk 0:04:16.5]} 19... Nd5+ {[%clk 0:03:24.9]} 20. Rxd5 {[%clk 0:04:11.9]}
20... exd5 {[%clk 0:03:22.9]} 21. Qxc6+ {[%clk 0:04:11.5]} 21... Kf7 {[%clk
0:03:19.2]} 22. Qc7+ {[%clk 0:04:09.5]} 1-0

[Event "Live Chess"]
[Site "Chess.com"]
[Date "2023.05.20"]
[Round "-"]
[White "Albul"]
[Black "toog"]
[Result "0-1"]
[WhiteElo "2172"]
[BlackElo "2642"]
[TimeControl "300"]
[EndTime "10:58:36 PDT"]
[Termination "toog won on time"]

1. e4 {[%clk 0:04:58.4]} 1... c5 {[%clk 0:04:56.7]} 2. Nc3 {[%clk 0:04:56.9]}
2... g6 {[%clk 0:04:53]} 3. d3 {[%clk 0:04:55.7]} 3... Bg7 {[%clk 0:04:52]} 4.
Be3 {[%clk 0:04:55.3]} 4... d6 {[%clk 0:04:50.2]} 5. Qd2 {[%clk 0:04:54.3]} 5...
Nc6 {[%clk 0:04:48.2]} 6. g3 {[%clk 0:04:53.9]} 6... Rb8 {[%clk 0:04:46.7]} 7.
Bg2 {[%clk 0:04:53.2]} 7... b5 {[%clk 0:04:45.3]} 8. Nge2 {[%clk 0:04:52.7]}
8... b4 {[%clk 0:04:44.1]} 9. Nd1 {[%clk 0:04:52.3]} 9... a5 {[%clk 0:04:41.5]}
10. O-O {[%clk 0:04:50]} 10... e6 {[%clk 0:04:39.1]} 11. f4 {[%clk 0:04:47]}
11... Nge7 {[%clk 0:04:38.4]} 12. g4 {[%clk 0:04:37.9]} 12... h5 {[%clk
0:04:35.2]} 13. h3 {[%clk 0:04:37.3]} 13... hxg4 {[%clk 0:04:32.9]} 14. hxg4
{[%clk 0:04:36.9]} 14... Nd4 {[%clk 0:04:28.8]} 15. c3 {[%clk 0:04:30.3]} 15...
Nxe2+ {[%clk 0:04:26.6]} 16. Qxe2 {[%clk 0:04:28.9]} 16... Nc6 {[%clk
0:04:25.5]} 17. g5 {[%clk 0:03:58.8]} 17... Qc7 {[%clk 0:04:15.9]} 18. Bf2
{[%clk 0:03:08.5]} 18... Ba6 {[%clk 0:04:10.2]} 19. Bg3 {[%clk 0:02:53.8]} 19...
a4 {[%clk 0:04:00.2]} 20. f5 {[%clk 0:02:50.6]} 20... Be5 {[%clk 0:03:55.3]} 21.
Bxe5 {[%clk 0:02:44.3]} 21... Nxe5 {[%clk 0:03:55.2]} 22. c4 {[%clk 0:02:43.1]}
22... Rh5 {[%clk 0:03:40.9]} 23. fxe6 {[%clk 0:02:34.8]} 23... fxe6 {[%clk
0:03:33.6]} 24. Nf2 {[%clk 0:01:18.1]} 24... Rxg5 {[%clk 0:03:16.2]} 25. Nh3
{[%clk 0:01:12.9]} 25... Rg3 {[%clk 0:03:08.5]} 26. Rad1 {[%clk 0:00:54.9]}
26... Qh7 {[%clk 0:03:05]} 27. Nf4 {[%clk 0:00:53]} 27... Ke7 {[%clk 0:02:55]}
28. Qf2 {[%clk 0:00:50.2]} 28... Rg4 {[%clk 0:02:38.6]} 29. Ne2 {[%clk
0:00:18.3]} 29... Rh8 {[%clk 0:02:33.3]} 30. Qf6+ {[%clk 0:00:12.5]} 30... Kd7
{[%clk 0:02:31.5]} 31. Kf2 {[%clk 0:00:06.6]} 31... Rxg2+ {[%clk 0:02:26.5]} 0-1

[Event "Live Chess"]
[Site "Chess.com"]
[Date "2023.05.20"]
[Round "-"]
[White "Tushinskiy"]
[Black "JoshMcK"]
[Result "1-0"]
[WhiteElo "2108"]
[BlackElo "1535"]
[TimeControl "300"]
[EndTime "10:58:38 PDT"]
[Termination "Tushinskiy won by resignation"]

1. d4 {[%clk 0:04:57.1]} 1... d5 {[%clk 0:04:58.2]} 2. c3 {[%clk 0:04:57]} 2...
Nf6 {[%clk 0:04:53.3]} 3. Nf3 {[%clk 0:04:56.9]} 3... Nbd7 {[%clk 0:04:47.7]} 4.
Bf4 {[%clk 0:04:56.8]} 4... g6 {[%clk 0:04:45.9]} 5. Bg3 {[%clk 0:04:56.7]} 5...
Bg7 {[%clk 0:04:45.4]} 6. Nbd2 {[%clk 0:04:55.8]} 6... O-O {[%clk 0:04:44.8]} 7.
e3 {[%clk 0:04:54.6]} 7... c6 {[%clk 0:04:42.5]} 8. Bd3 {[%clk 0:04:53.2]} 8...
Re8 {[%clk 0:04:39.9]} 9. Ne5 {[%clk 0:04:50.8]} 9... Nxe5 {[%clk 0:04:37.9]}
10. Bxe5 {[%clk 0:04:50.7]} 10... Bg4 {[%clk 0:04:31.3]} 11. f3 {[%clk
0:04:48.8]} 11... Bd7 {[%clk 0:04:29]} 12. Qe2 {[%clk 0:04:47.3]} 12... a6
{[%clk 0:04:26.4]} 13. h4 {[%clk 0:04:42.8]} 13... Nh5 {[%clk 0:04:25.4]} 14.
Bxg7 {[%clk 0:04:36.8]} 14... Nxg7 {[%clk 0:04:25.3]} 15. f4 {[%clk 0:04:31.7]}
15... Nf5 {[%clk 0:04:20.4]} 16. Rh3 {[%clk 0:04:29.4]} 16... Nxd4 {[%clk
0:04:09.8]} 17. exd4 {[%clk 0:04:26.2]} 17... Bxh3 {[%clk 0:04:09]} 18. gxh3
{[%clk 0:04:24.8]} 18... e5 {[%clk 0:04:04.1]} 19. fxe5 {[%clk 0:04:22.6]} 19...
Qxh4+ {[%clk 0:04:00.6]} 20. Kd1 {[%clk 0:04:21.8]} 20... Qxh3 {[%clk
0:03:59.3]} 21. Kc2 {[%clk 0:04:21.3]} 21... Re7 {[%clk 0:03:53.3]} 22. Qf2
{[%clk 0:04:19.5]} 22... Rae8 {[%clk 0:03:49]} 23. Rg1 {[%clk 0:04:18.7]} 23...
Qe6 {[%clk 0:03:46.6]} 24. Nf3 {[%clk 0:04:17.5]} 24... h6 {[%clk 0:03:35.1]}
25. Nh4 {[%clk 0:04:13.6]} 25... Kh7 {[%clk 0:03:29.8]} 26. Qf4 {[%clk 0:04:02]}
26... Rg8 {[%clk 0:03:14.1]} 27. Nf5 {[%clk 0:03:57.8]} 1-0

[Event "Live Chess"]
[Site "Chess.com"]
[Date "2023.05.20"]
[Round "-"]
[White "GMHarry-youtube"]
[Black "birdseed45"]
[Result "0-1"]
[WhiteElo "2127"]
[BlackElo "1866"]
[TimeControl "300"]
[EndTime "10:58:41 PDT"]
[Termination "birdseed45 won by resignation"]

1. e4 {[%clk 0:04:58.4]} 1... c5 {[%clk 0:04:59]} 2. Nf3 {[%clk 0:04:51.5]} 2...
Nc6 {[%clk 0:04:58.4]} 3. Bb5 {[%clk 0:04:50.5]} 3... d6 {[%clk 0:04:57.1]} 4.
d4 {[%clk 0:04:47.8]} 4... cxd4 {[%clk 0:04:54.4]} 5. Nxd4 {[%clk 0:04:45.6]}
5... Bd7 {[%clk 0:04:53.2]} 6. c4 {[%clk 0:04:44.8]} 6... a6 {[%clk 0:04:50]} 7.
Ba4 {[%clk 0:04:42.7]} 7... Nxd4 {[%clk 0:04:41]} 8. Bxd7+ {[%clk 0:04:40.5]}
8... Qxd7 {[%clk 0:04:40.9]} 9. Qxd4 {[%clk 0:04:39.6]} 9... Nf6 {[%clk
0:04:39.2]} 10. Nc3 {[%clk 0:04:38.4]} 10... e6 {[%clk 0:04:36.7]} 11. b3 {[%clk
0:04:36.8]} 11... Be7 {[%clk 0:04:35.2]} 12. Na4 {[%clk 0:04:36]} 12... Qc7
{[%clk 0:04:29.6]} 13. Ba3 {[%clk 0:04:33.3]} 13... O-O {[%clk 0:04:25.7]} 14.
O-O-O {[%clk 0:04:28.2]} 14... d5 {[%clk 0:04:16.3]} 15. exd5 {[%clk 0:04:25.7]}
15... Bxa3+ {[%clk 0:04:13.4]} 16. Kb1 {[%clk 0:04:25.1]} 16... exd5 {[%clk
0:04:09.2]} 17. cxd5 {[%clk 0:04:19.7]} 17... b5 {[%clk 0:04:00.5]} 18. Nc3
{[%clk 0:04:13.7]} 18... Rac8 {[%clk 0:03:53]} 19. Rd3 {[%clk 0:03:59.5]} 19...
b4 {[%clk 0:03:47.4]} 20. Na4 {[%clk 0:03:50.1]} 20... Qc1+ {[%clk 0:03:42.5]}
0-1

[Event "Live Chess"]
[Site "Chess.com"]
[Date "2023.05.20"]
[Round "-"]
[White "JoeyCage"]
[Black "EdenHazard8"]
[Result "1-0"]
[WhiteElo "2300"]
[BlackElo "2108"]
[TimeControl "300"]
[EndTime "10:58:41 PDT"]
[Termination "JoeyCage won by resignation"]

1. e4 {[%clk 0:04:55.4]} 1... c5 {[%clk 0:04:59.7]} 2. Nf3 {[%clk 0:04:54.3]}
2... Nc6 {[%clk 0:04:59.3]} 3. d4 {[%clk 0:04:53.5]} 3... cxd4 {[%clk
0:04:59.1]} 4. Nxd4 {[%clk 0:04:53.4]} 4... Nf6 {[%clk 0:04:58.1]} 5. Nc3 {[%clk
0:04:52.6]} 5... d6 {[%clk 0:04:56.9]} 6. Bg5 {[%clk 0:04:46.8]} 6... g6 {[%clk
0:04:55.7]} 7. Bxf6 {[%clk 0:04:45]} 7... exf6 {[%clk 0:04:55.6]} 8. Qd2 {[%clk
0:04:43.8]} 8... Bg7 {[%clk 0:04:54.3]} 9. O-O-O {[%clk 0:04:42.8]} 9... O-O
{[%clk 0:04:52.6]} 10. Nxc6 {[%clk 0:04:41.6]} 10... bxc6 {[%clk 0:04:52.5]} 11.
Qxd6 {[%clk 0:04:40.6]} 11... Qa5 {[%clk 0:04:52.1]} 12. Bc4 {[%clk 0:04:26.5]}
12... Rb8 {[%clk 0:04:44.6]} 13. Qxb8 {[%clk 0:04:21.3]} 13... f5 {[%clk
0:04:31.7]} 14. Qb3 {[%clk 0:04:12]} 14... Be6 {[%clk 0:04:23.4]} 15. Bxe6
{[%clk 0:04:09.5]} 15... fxe6 {[%clk 0:04:23.3]} 16. Qxe6+ {[%clk 0:04:07.4]}
16... Kh8 {[%clk 0:04:22.9]} 17. Qc4 {[%clk 0:04:00.2]} 17... Rb8 {[%clk
0:04:20.7]} 18. Rd7 {[%clk 0:03:51.6]} 18... Qb6 {[%clk 0:04:15.7]} 19. Nd1
{[%clk 0:03:42.8]} 19... Bxb2+ {[%clk 0:04:11.8]} 20. Nxb2 {[%clk 0:03:41.4]}
20... Qxb2+ {[%clk 0:04:11.7]} 21. Kd2 {[%clk 0:03:39.2]} 21... Qe5 {[%clk
0:04:05.1]} 22. Qd4 {[%clk 0:03:36.7]} 1-0

[Event "Live Chess"]
[Site "Chess.com"]
[Date "2023.05.20"]
[Round "-"]
[White "misha464"]
[Black "BogdanBeleiUkraine"]
[Result "1-0"]
[WhiteElo "759"]
[BlackElo "1174"]
[TimeControl "300"]
[EndTime "10:58:48 PDT"]
[Termination "misha464 won by resignation"]

1. e4 {[%clk 0:04:57.9]} 1... e5 {[%clk 0:04:58.6]} 2. Qf3 {[%clk 0:04:57.3]}
2... Nc6 {[%clk 0:04:56.5]} 3. Bc4 {[%clk 0:04:56.9]} 3... Nf6 {[%clk
0:04:47.9]} 4. d3 {[%clk 0:04:55.5]} 4... h6 {[%clk 0:04:47]} 5. Ne2 {[%clk
0:04:50.8]} 5... Na5 {[%clk 0:04:44.4]} 6. b3 {[%clk 0:04:47.6]} 6... Nxc4
{[%clk 0:04:43.3]} 7. bxc4 {[%clk 0:04:47.5]} 7... Bc5 {[%clk 0:04:41.7]} 8. Ba3
{[%clk 0:04:46.8]} 8... b6 {[%clk 0:04:36.4]} 9. Bxc5 {[%clk 0:04:46.1]} 9...
bxc5 {[%clk 0:04:35.4]} 10. Nbc3 {[%clk 0:04:46]} 10... d6 {[%clk 0:04:34.6]}
11. Nd5 {[%clk 0:04:44.4]} 11... Bg4 {[%clk 0:04:23.4]} 12. Nxf6+ {[%clk
0:04:41.6]} 12... Qxf6 {[%clk 0:04:13.3]} 13. Qxg4 {[%clk 0:04:40.6]} 13... g5
{[%clk 0:04:11.1]} 14. O-O {[%clk 0:04:38.8]} 14... h5 {[%clk 0:04:09.4]} 15.
Qf3 {[%clk 0:04:31.6]} 15... Qxf3 {[%clk 0:04:06.8]} 16. gxf3 {[%clk 0:04:30.2]}
16... Ke7 {[%clk 0:04:05.6]} 17. Nc3 {[%clk 0:04:28.6]} 17... Rag8 {[%clk
0:04:03.2]} 18. Nd5+ {[%clk 0:04:25.5]} 18... Kd8 {[%clk 0:04:00.3]} 19. Kh1
{[%clk 0:04:19.3]} 19... g4 {[%clk 0:03:58.4]} 20. fxg4 {[%clk 0:04:18.5]} 20...
Rxg4 {[%clk 0:03:57]} 21. Rg1 {[%clk 0:04:17]} 21... Rh4 {[%clk 0:03:56]} 22.
Rab1 {[%clk 0:04:09]} 22... Rh3 {[%clk 0:03:50.6]} 23. Rg7 {[%clk 0:04:07]}
23... Rf3 {[%clk 0:03:48.2]} 24. Kg2 {[%clk 0:03:58.6]} 1-0

[Event "Live Chess"]
[Site "Chess.com"]
[Date "2023.05.20"]
[Round "-"]
[White "Duke_of_Bebington"]
[Black "diana21strabt"]
[Result "0-1"]
[WhiteElo "1575"]
[BlackElo "1709"]
[TimeControl "300"]
[EndTime "10:58:48 PDT"]
[Termination "diana21strabt won by checkmate"]

1. e4 {[%clk 0:04:58.3]} 1... d5 {[%clk 0:04:40.9]} 2. exd5 {[%clk 0:04:56.4]}
2... Qxd5 {[%clk 0:04:39.7]} 3. d4 {[%clk 0:04:55.6]} 3... Nf6 {[%clk
0:04:38.1]} 4. Nf3 {[%clk 0:04:54.5]} 4... Bg4 {[%clk 0:04:36.7]} 5. Be2 {[%clk
0:04:52.9]} 5... Nc6 {[%clk 0:04:35.5]} 6. Be3 {[%clk 0:04:49.1]} 6... O-O-O
{[%clk 0:04:34]} 7. c3 {[%clk 0:04:41.4]} 7... e5 {[%clk 0:04:28.1]} 8. O-O
{[%clk 0:04:37.9]} 8... exd4 {[%clk 0:04:23.3]} 9. Bxd4 {[%clk 0:04:26.2]} 9...
Nxd4 {[%clk 0:04:15]} 10. Nxd4 {[%clk 0:04:24.5]} 10... Bxe2 {[%clk 0:04:13.1]}
11. Qxe2 {[%clk 0:04:22.8]} 11... Bc5 {[%clk 0:04:11.5]} 12. Rd1 {[%clk
0:04:18.1]} 12... Rhe8 {[%clk 0:04:10.1]} 13. Qb5 {[%clk 0:03:57.2]} 13... Bxd4
{[%clk 0:04:05.7]} 14. Qxd5 {[%clk 0:03:54.2]} 14... Rxd5 {[%clk 0:04:00.2]} 15.
Rxd4 {[%clk 0:03:51]} 15... Re1# {[%clk 0:03:58.4]} 0-1

[Event "Live Chess"]
[Site "Chess.com"]
[Date "2023.05.20"]
[Round "-"]
[White "AyannaTang"]
[Black "Greenbecker"]
[Result "0-1"]
[WhiteElo "176"]
[BlackElo "1659"]
[TimeControl "300"]
[EndTime "10:58:50 PDT"]
[Termination "Greenbecker won by checkmate"]

1. e4 {[%clk 0:04:58.7]} 1... e6 {[%clk 0:04:59]} 2. Bd3 {[%clk 0:04:53.2]} 2...
d5 {[%clk 0:04:58.5]} 3. Nf3 {[%clk 0:04:48.1]} 3... c5 {[%clk 0:04:56.8]} 4.
exd5 {[%clk 0:04:45.7]} 4... exd5 {[%clk 0:04:55.6]} 5. Nh4 {[%clk 0:04:36]}
5... Qxh4 {[%clk 0:04:52.9]} 6. O-O {[%clk 0:04:30.3]} 6... Bd6 {[%clk 0:04:50]}
7. g3 {[%clk 0:04:24.4]} 7... Qh3 {[%clk 0:04:45.4]} 8. Be2 {[%clk 0:04:07]}
8... Ne7 {[%clk 0:04:42.2]} 9. d4 {[%clk 0:04:02.8]} 9... Nbc6 {[%clk
0:04:37.7]} 10. dxc5 {[%clk 0:04:01.2]} 10... Bxc5 {[%clk 0:04:35.7]} 11. Be3
{[%clk 0:03:50.8]} 11... Bd6 {[%clk 0:04:30.3]} 12. Nc3 {[%clk 0:03:21.8]} 12...
Be6 {[%clk 0:04:24.4]} 13. Nb5 {[%clk 0:03:14.9]} 13... Rd8 {[%clk 0:04:14.5]}
14. Nd4 {[%clk 0:03:01.6]} 14... Nxd4 {[%clk 0:04:07.9]} 15. Bxd4 {[%clk
0:02:59.9]} 15... O-O {[%clk 0:03:58]} 16. Bc3 {[%clk 0:02:47.9]} 16... Bc5
{[%clk 0:03:35.1]} 17. Qd2 {[%clk 0:02:02.5]} 17... d4 {[%clk 0:03:31.5]} 18.
Ba5 {[%clk 0:01:48.3]} 18... Bd5 {[%clk 0:03:27.8]} 19. Bxd8 {[%clk 0:01:46.1]}
19... Qg2# {[%clk 0:03:25.7]} 0-1